fUSD/lending_fUSD_20240201
["ID","MTS","AMOUNT","RATE_DAILY","PERIOD"]
[313106292,1706753439479,-71301.78178387,0.000299,2]
[313106294,1706753439489,-616.7689614,0.000299,2]
[313106296,1706753439500,-300.00890078,0.000299,2]
[313106297,1706753439511,-199.60902907,0.000299,2]
[313106300,1706753439520,-178.52,0.00029993,2]
[313106302,1706753439530,-327.05,0.00029993,2]
[313106304,1706753439540,-155.0,0.0003,2]
[313106306,1706753439549,-70013.25973536,0.0003,4]
[313106308,1706753439558,-359.91988601,0.0003,2]
[313106310,1706753439567,-4884.25961146,0.0003,4]
[313106312,1706753439576,-5942.0000525,0.0003,2]
[313106314,1706753439585,-252.85143904,0.0003,4]
[313106315,1706753439594,-589.89356993,0.0003,2]
[313106318,1706753439603,-375.57296171,0.0003,2]
[313106319,1706753439613,-700.99024461,0.0003,2]
[313106322,1706753439623,-110875.64286131,0.0003,2]
[313106324,1706753439632,-204.0,0.0003,2]
[313106326,1706753439642,-573.48,0.00030071,2]
[313106327,1706753439652,-159.97,0.00030137,2]
[313106329,1706753439661,-155.0,0.00030137,2]
[313106332,1706753439670,-178.52,0.00030209,2]
[313106333,1706753439680,-327.05,0.00030209,2]
[313106335,1706753439688,-286.13,0.00030292,2]
[313106337,1706753439698,-178.52,0.00030425,2]
[313106339,1706753439706,-327.05,0.00030425,2]
[313106341,1706753439716,-205.02,0.0003063,2]
[313106343,1706753439725,-178.52,0.00030642,2]
[313106345,1706753439734,-327.05,0.00030642,2]
[313106347,1706753439743,-302.48128432,0.00030798,4]
[313106349,1706753439752,-19196.88510434,0.00030805,2]
[313106351,1706753439762,-2282.43,0.00030806,2]
[313106353,1706753439771,-208.0,0.00030821,8]
[313106355,1706753439780,-178.52,0.00030858,2]
[313106357,1706753439789,-327.05,0.00030858,2]
[313106360,1706753439799,-159.97,0.0003092,2]
[313106362,1706753439807,-258.92777953,0.00031,4]
[313106364,1706753439817,-500.0,0.00031,3]
[313106366,1706753439826,-564.8,0.00031039,2]
[313106368,1706753439835,-178.52,0.00031074,2]
[313106370,1706753439844,-327.05,0.00031074,2]
[313106372,1706753439853,-200.0,0.0003125,2]
[313106374,1706753439862,-686.18093297,0.0003125,4]
[313106376,1706753439871,-500.0,0.0003125,2]
[313106378,1706753439881,-178.52,0.00031291,2]
[313106379,1706753439890,-327.05,0.00031291,2]
[313106381,1706753439899,-158.80447005,0.000314,30]
[313106383,1706753439908,-156.81428583,0.00031471,2]
[313106385,1706753439917,-178.52,0.00031507,2]
[313106388,1706753439927,-327.05,0.00031507,2]
[313106390,1706753439936,-180.0,0.00031644,2]
[313106392,1706753439945,-190.66,0.00031644,2]
[313106394,1706753439954,-304.0,0.00031699,4]
[313106395,1706753439964,-159.97,0.00031703,2]
[313106398,1706753439973,-276160.64843,0.000318,3]
[313106399,1706753439982,-257.72,0.000318,7]
[313106401,1706753439991,-257.72,0.00031937,7]
[313106403,1706753440001,-272.46,0.00031945,2]
[313106406,1706753440011,-1000.0,0.00031948,2]
[313106408,1706753440020,-156.72602043,0.00032,2]
[313106410,1706753440029,-1602.87734198,0.00032,2]
[313106412,1706753440038,-1978.77141402,0.00032023,28]
[313106414,1706753440047,-2231.46229872,0.00032043,5]
[313106416,1706753440057,-257.72,0.00032074,7]
[313106418,1706753440066,-19196.88510434,0.00032186,4]
[313106420,1706753440076,-257.72,0.00032211,7]
[313106422,1706753440085,-573.48,0.00032335,2]
[313106424,1706753440094,-306.59715643,0.00032348,7]
[313106425,1706753440103,-435.2,0.00032367,2]
[313106428,1706753440113,-1518.97662588,0.0003238,2]
[313106430,1706753440124,-250.0,0.0003242,2]
[313106432,1706753440133,-159.97,0.00032485,2]
[313106434,1706753440141,-250.0,0.00032694,2]
[313106436,1706753440150,-208.0,0.00032766,12]
[313106438,1706753440159,-1518.97662588,0.00032773,2]
[313106440,1706753440168,-152.85635732,0.00032797,2]
[313106442,1706753440177,-160901.59513651,0.000328,2]
[313106444,1706753440186,-1000.0,0.000328,2]
[313106446,1706753440195,-1000.0,0.000328,3]
[313106448,1706753440204,-139.18082601,0.00032875,4]
[313106450,1706753440213,-2265.23379337,0.00032875,4]
[313106452,1706753440223,-619.30789245,0.00032875,2]
[313106454,1706753440232,-312.56804473,0.00032875,4]
[313106456,1706753440241,-500.0,0.00032876,2]
[313106458,1706753440250,-1000.0,0.00032876,7]
[313106460,1706753440259,-570.94789095,0.00032876,2]
[313106462,1706753440268,-500.0,0.00032876,2]
[313106464,1706753440277,-550.58502391,0.00032876,2]
[313106466,1706753440286,-514.39109038,0.00032876,2]
[313106468,1706753440295,-522.87681317,0.00032876,2]
[313106470,1706753440304,-575.68703796,0.00032876,2]
[313106472,1706753440313,-500.0,0.00032876,2]
[313106474,1706753440322,-618.45211522,0.00032876,2]
[313106475,1706753440331,-531.79317475,0.00032876,2]
[313106477,1706753440340,-523.04452817,0.00032876,2]
[313106479,1706753440349,-512.97307112,0.00032876,2]
[313106480,1706753440357,-538.60583617,0.00032876,2]
[313106482,1706753440366,-554.41622797,0.00032876,2]
[313106484,1706753440376,-507.2816605,0.00032876,2]
[313106486,1706753440386,-527.74401539,0.00032876,2]
[313106488,1706753440395,-609.87096555,0.00032876,2]
[313106490,1706753440404,-483.43509994,0.00032876,2]
[313106491,1706753440412,-586.31195677,0.00032876,2]
[313106493,1706753440425,-400.03286693,0.00032876,2]
[313106495,1706753440433,-532.90402176,0.00032876,2]
[313106497,1706753440443,-523.04007345,0.00032876,2]
[313106499,1706753440451,-518.71654313,0.00032876,2]
[313106501,1706753440461,-602.08,0.00032876,2]
[313106502,1706753440470,-505.74858786,0.00032876,2]
[313106504,1706753440479,-602.4628144,0.00032876,2]
[313106506,1706753440488,-500.0,0.00032876,2]
[313106507,1706753440498,-525.44773599,0.00032876,2]
[313106509,1706753440507,-586.94543174,0.00032876,2]
[313106511,1706753440516,-526.83101839,0.00032876,2]
[313106513,1706753440525,-523.66663881,0.00032876,2]
[313106515,1706753440533,-522.44050918,0.00032876,2]
[313106516,1706753440542,-568.7185919,0.00032876,2]
[313106518,1706753440551,-519.99921061,0.00032876,2]
[313106520,1706753440560,-500.0,0.00032876,2]
[313106522,1706753440569,-474.0143717,0.00032876,2]
[313106524,1706753440578,-521.96108107,0.00032876,2]
[313106526,1706753440587,-521.56513331,0.00032876,2]
[313106528,1706753440596,-500.0,0.00032876,2]
[313106529,1706753440605,-521.66227605,0.00032876,2]
[313106531,1706753440614,-524.9009412,0.00032876,2]
[313106533,1706753440624,-556.52144209,0.00032876,2]
[313106535,1706753440632,-547.07461031,0.00032876,2]
[313106537,1706753440641,-500.0,0.00032876,10]
[313106538,1706753440650,-569.14472357,0.00032876,2]
[313106540,1706753440659,-509.59550589,0.00032876,2]
[313106542,1706753440669,-533.0175737,0.00032876,2]
[313106544,1706753440678,-610.8386383,0.00032876,2]
[313106546,1706753440687,-568.70297962,0.00032876,2]
[313106548,1706753440696,-506.53788072,0.00032876,2]
[313106550,1706753440704,-524.84733524,0.00032876,2]
[313106551,1706753440714,-544.01621874,0.00032876,2]
[313106553,1706753440723,-582.78,0.00032876,2]
[313106555,1706753440733,-507.95887125,0.00032876,2]
[313106557,1706753440741,-644.64066485,0.00032876,2]
[313106559,1706753440751,-504.35004035,0.00032876,2]
[313106561,1706753440760,-500.0,0.00032876,2]
[313106562,1706753440769,-513.03718244,0.00032876,2]
[313106564,1706753440778,-547.87049903,0.00032876,2]
[313106566,1706753440787,-543.47883563,0.00032876,2]
[313106568,1706753440796,-553.0216033,0.00032876,2]
[313106570,1706753440805,-500.0,0.00032876,2]
[313106572,1706753440814,-512.5514014,0.00032876,2]
[313106573,1706753440823,-510.47161292,0.00032876,2]
[313106575,1706753440831,-519.83302573,0.00032876,2]
[313106577,1706753440840,-500.0,0.00032876,2]
[313106579,1706753440849,-542.06185033,0.00032876,2]
[313106581,1706753440858,-228.43138764,0.00032876,2]
[313106582,1706753440867,-551.95954288,0.00032876,2]
[313106584,1706753440876,-512.97955622,0.00032876,2]
[313106586,1706753440885,-500.0,0.00032876,2]
[313106588,1706753440894,-583.15829645,0.00032876,2]
[313106589,1706753440903,-500.0,0.00032876,2]
[313106591,1706753440912,-560.52879056,0.00032876,2]
[313106593,1706753440921,-519.58653756,0.00032876,2]
[313106595,1706753440931,-574.9062427,0.00032876,2]
[313106597,1706753440940,-553.03831461,0.00032876,2]
[313106599,1706753440949,-300.29955013,0.00032876,2]
[313106601,1706753440958,-500.0,0.00032876,2]
[313106602,1706753440966,-549.42930093,0.00032876,2]
[313106604,1706753440975,-579.98138907,0.00032876,2]
[313106606,1706753440985,-550.8637824,0.00032876,2]
[313106608,1706753440996,-564.98849963,0.00032876,2]
[313106610,1706753441005,-562.37109157,0.00032876,2]
[313106612,1706753441015,-763.16,0.00032876,2]
[313106614,1706753441023,-557.61902005,0.00032876,2]
[313106616,1706753441033,-505.56209072,0.00032876,2]
[313106618,1706753441042,-500.0,0.00032876,2]
[313106619,1706753441051,-523.29235837,0.00032876,2]
[313106621,1706753441060,-533.40958161,0.00032876,2]
[313106623,1706753441069,-500.0,0.00032876,2]
[313106625,1706753441078,-1461.41,0.00032876,2]
[313106627,1706753441087,-500.0,0.00032876,2]
[313106629,1706753441095,-625.28809982,0.00032876,2]
[313106631,1706753441104,-500.0,0.00032876,2]
[313106632,1706753441113,-638.86,0.00032876,2]
[313106634,1706753441123,-500.0,0.00032876,2]
[313106637,1706753441133,-626.08,0.00032876,2]
[313106638,1706753441143,-500.0,0.00032876,2]
[313106640,1706753441152,-500.0,0.00032876,2]
[313106642,1706753441162,-534.03540481,0.00032876,2]
[313106644,1706753441171,-500.0,0.00032876,2]
[313106646,1706753441179,-530.39956257,0.00032876,2]
[313106648,1706753441189,-500.0,0.00032876,2]
[313106650,1706753441198,-500.0,0.00032876,2]
[313106652,1706753441207,-500.0,0.00032876,2]
[313106654,1706753441216,-500.0,0.00032876,2]
[313106656,1706753441225,-500.0,0.00032876,2]
[313106657,1706753441234,-523.05523664,0.00032876,2]
[313106659,1706753441243,-1198.3,0.00032876,2]
[313106661,1706753441252,-523.08164024,0.00032876,2]
[313106663,1706753441261,-624.29601936,0.00032876,2]
[313106665,1706753441270,-500.0,0.00032876,2]
[313106667,1706753441279,-176.02063487,0.00032876,2]
[313106669,1706753441288,-500.0,0.00032876,2]
[313106671,1706753441297,-156.50451813,0.00032876,2]
[313106673,1706753441307,-500.0,0.00032876,2]
[313106675,1706753441316,-519.15267544,0.00032876,2]
[313106676,1706753441325,-747.95,0.00032876,2]
[313106678,1706753441334,-500.0,0.00032876,2]
[313106680,1706753441344,-974.69,0.00032876,2]
[313106682,1706753441353,-500.0,0.00032876,2]
[313106684,1706753441362,-500.0,0.00032876,2]
[313106686,1706753441372,-507.8628672,0.00032876,2]
[313106688,1706753441381,-500.0,0.00032876,2]
[313106690,1706753441390,-500.0,0.00032876,2]
[313106692,1706753441399,-500.0,0.00032876,2]
[313106693,1706753441409,-500.0,0.00032876,2]
[313106695,1706753441420,-500.0,0.00032876,2]
[313106697,1706753441430,-500.0,0.00032876,2]
[313106699,1706753441439,-500.0,0.00032876,2]
[313106701,1706753441449,-1419.12,0.00032876,7]
[313106703,1706753441458,-500.0,0.00032876,2]
[313106705,1706753441467,-800.63,0.00032876,2]
[313106707,1706753441477,-500.0,0.00032876,2]
[313106708,1706753441486,-535.74362496,0.00032876,2]
[313106710,1706753441496,-1059.69,0.00032876,2]
[313106712,1706753441505,-500.0,0.00032876,2]
[313106714,1706753441514,-553.36220611,0.00032876,2]
[313106716,1706753441523,-500.0,0.00032876,2]
[313106717,1706753441532,-150.72314595,0.00032876,2]
[313106718,1706753441542,-182.40772478,0.00032876,2]
[313106719,1706753441551,-500.0,0.00032876,2]
[313106720,1706753441560,-500.0,0.00032876,2]
[313106721,1706753441569,-500.0,0.00032876,2]
[313106722,1706753441578,-500.0,0.00032876,2]
[313106723,1706753441587,-496.26189021,0.00032876,2]
[313106724,1706753441597,-500.0,0.00032876,2]
[313106725,1706753441606,-500.0,0.00032876,2]
[313106726,1706753441615,-500.0,0.00032876,2]
[313106727,1706753441624,-10000.0,0.00032876,3]
[313106729,1706753441634,-510.68,0.00032876,2]
[313106731,1706753441642,-500.0,0.00032876,2]
[313106733,1706753441651,-500.0,0.00032876,2]
[313106735,1706753441661,-500.0,0.00032876,2]
[313106737,1706753441670,-1339.36,0.00032876,2]
[313106739,1706753441679,-500.0,0.00032876,2]
[313106741,1706753441687,-535.03834451,0.00032876,2]
[313106743,1706753441697,-500.0,0.00032876,2]
[313106745,1706753441706,-500.0,0.00032876,2]
[313106747,1706753441715,-500.0,0.00032876,2]
[313106749,1706753441724,-504.24,0.00032876,2]
[313106751,1706753441734,-500.0,0.00032876,20]
[313106753,1706753441742,-500.0,0.00032876,2]
[313106755,1706753441751,-500.0,0.00032876,2]
[313106757,1706753441760,-535.08176773,0.00032876,2]
[313106758,1706753441769,-500.0,0.00032876,2]
[313106760,1706753441778,-500.0,0.00032876,2]
[313106762,1706753441788,-943.66,0.00032876,2]
[313106764,1706753441797,-500.0,0.00032876,2]
[313106766,1706753441806,-500.0,0.00032876,2]
[313106768,1706753441815,-500.0,0.00032876,2]
[313106770,1706753441824,-528.75668559,0.00032876,2]
[313106772,1706753441833,-236.39493764,0.00032876,2]
[313106774,1706753441843,-500.0,0.00032876,2]
[313106777,1706753441853,-500.0,0.00032876,2]
[313106778,1706753441862,-500.96,0.00032876,2]
[313106780,1706753441871,-500.0,0.00032876,2]
[313106782,1706753441880,-500.0,0.00032876,2]
[313106784,1706753441889,-588.0,0.00032876,2]
[313106787,1706753441899,-500.0,0.00032876,2]
[313106789,1706753441909,-500.0,0.00032876,2]
[313106791,1706753441919,-570.86857171,0.00032876,2]
[313106793,1706753441928,-632.45,0.00032876,2]
[313106794,1706753441937,-632.45,0.00032876,2]
[313106796,1706753441946,-632.45,0.00032876,2]
[313106798,1706753441955,-632.45,0.00032876,2]
[313106799,1706753441964,-632.45,0.00032876,2]
[313106800,1706753441973,-632.45,0.00032876,2]
[313106801,1706753441982,-632.45,0.00032876,2]
[313106802,1706753441991,-632.45,0.00032876,2]
[313106803,1706753442000,-632.45,0.00032876,2]
[313106804,1706753442009,-542.37631364,0.00032876,2]
[313106805,1706753442018,-1000.0,0.00032876,2]
[313106806,1706753442028,-595.54045968,0.00032876,2]
[313106807,1706753442037,-500.0,0.00032876,2]
[313106808,1706753442046,-500.0,0.00032876,2]
[313106809,1706753442055,-500.0,0.00032876,2]
[313106810,1706753442064,-525.26176757,0.00032876,2]
[313106811,1706753442073,-500.0,0.00032876,2]
[313106812,1706753442082,-500.0,0.00032876,2]
[313106813,1706753442094,-500.0,0.00032876,2]
[313106814,1706753442102,-500.0,0.00032876,2]
[313106815,1706753442111,-500.0,0.00032876,2]
[313106816,1706753442120,-370.63455534,0.00032876,2]
[313106817,1706753442130,-500.0,0.00032876,2]
[313106818,1706753442140,-500.0,0.00032876,2]
[313106819,1706753442149,-500.0,0.00032876,2]
[313106820,1706753442158,-500.0,0.00032876,2]
[313106821,1706753442168,-500.0,0.00032876,2]
[313106822,1706753442176,-500.0,0.00032876,2]
[313106823,1706753442185,-500.0,0.00032876,2]
[313106824,1706753442194,-228.1354618,0.00032876,2]
[313106825,1706753442203,-516.1187632,0.00032876,2]
[313106826,1706753442213,-500.0,0.00032876,2]
[313106827,1706753442222,-508.98265333,0.00032876,2]
[313106828,1706753442232,-500.0,0.00032876,2]
[313106829,1706753442241,-520.11811677,0.00032876,2]
[313106830,1706753442250,-500.0,0.00032876,2]
[313106831,1706753442259,-500.0,0.00032876,2]
[313106832,1706753442268,-635.14175743,0.00032876,2]
[313106833,1706753442277,-500.0,0.00032876,2]
[313106834,1706753442286,-537.44654605,0.00032876,2]
[313106835,1706753442295,-371.3426691,0.00032876,2]
[313106836,1706753442304,-525.85274583,0.00032876,2]
[313106837,1706753442313,-500.0,0.00032876,2]
[313106838,1706753442322,-220.56935443,0.00032876,2]
[313106839,1706753442331,-572.4669567,0.00032876,2]
[313106840,1706753442340,-500.0,0.00032876,2]
[313106841,1706753442349,-500.0,0.00032876,2]
[313106842,1706753442358,-500.0,0.00032876,2]
[313106843,1706753442367,-525.14111117,0.00032876,2]
[313106844,1706753442378,-508.43526087,0.00032876,2]
[313106845,1706753442387,-1314.44,0.00032876,2]
[313106846,1706753442396,-216.58770509,0.00032876,2]
[313106847,1706753442406,-531.55857404,0.00032876,2]
[313106848,1706753442415,-500.0,0.00032876,2]
[313106849,1706753442425,-628.37,0.00032876,2]
[313106850,1706753442434,-1483.58,0.00032876,2]
[313106851,1706753442443,-833.05,0.00032876,2]
[313106852,1706753442452,-621.52,0.00032876,2]
[313106853,1706753442461,-760.71,0.00032876,2]
[313106854,1706753442471,-1506.53,0.00032876,2]
[313106855,1706753442480,-500.0,0.00032876,2]
[313106856,1706753442489,-500.0,0.00032876,2]
[313106857,1706753442498,-2613.19,0.00032876,2]
[313106858,1706753442507,-1000.0,0.00032876,21]
[313106859,1706753442516,-517.37369283,0.00032876,2]
[313106860,1706753442525,-230.37955962,0.00032876,2]
[313106861,1706753442535,-500.0,0.00032876,2]
[313106862,1706753442544,-518.22005317,0.00032876,2]
[313106863,1706753442553,-841.1,0.00032876,2]
[313106864,1706753442562,-500.0,0.00032876,2]
[313106866,1706753442571,-1092.7,0.00032876,2]
[313106867,1706753442580,-654.8,0.00032876,2]
[313106868,1706753442589,-523.56007252,0.00032876,2]
[313106869,1706753442598,-500.0,0.00032876,2]
[313106870,1706753442607,-500.0,0.00032876,2]
[313106871,1706753442616,-500.0,0.00032876,2]
[313106872,1706753442628,-500.0,0.00032876,2]
[313106873,1706753442638,-601.97,0.00032876,2]
[313106874,1706753442648,-500.0,0.00032876,2]
[313106875,1706753442657,-500.0,0.00032876,2]
[313106876,1706753442666,-500.0,0.00032876,2]
[313106877,1706753442676,-500.0,0.00032876,2]
[313106878,1706753442686,-500.0,0.00032876,2]
[313106879,1706753442695,-546.24,0.00032876,2]
[313106880,1706753442704,-173.74603014,0.00032876,2]
[313106881,1706753442714,-500.0,0.00032876,2]
[313106882,1706753442723,-587.91586102,0.00032876,2]
[313106883,1706753442733,-500.0,0.00032876,2]
[313106884,1706753442742,-1642.79,0.00032876,2]
[313106885,1706753442752,-500.0,0.00032876,2]
[313106886,1706753442762,-500.0,0.00032876,2]
[313106887,1706753442771,-500.0,0.00032876,2]
[313106888,1706753442781,-500.0,0.00032876,2]
[313106889,1706753442790,-500.0,0.00032876,2]
[313106890,1706753442800,-500.0,0.00032876,2]
[313106891,1706753442809,-500.0,0.00032876,2]
[313106892,1706753442819,-809.92,0.00032876,2]
[313106893,1706753442828,-719.16,0.00032876,2]
[313106894,1706753442837,-500.0,0.00032876,2]
[313106895,1706753442846,-523.25680525,0.00032876,2]
[313106896,1706753442855,-500.0,0.00032876,2]
[313106897,1706753442864,-250.0,0.00032876,2]
[313106898,1706753442876,-500.0,0.00032876,2]
[313106899,1706753442885,-466.08811002,0.00032876,2]
[313106900,1706753442894,-500.0,0.00032876,2]
[313106901,1706753442903,-2879.3,0.00032876,2]
[313106902,1706753442912,-3356.9,0.00032876,2]
[313106903,1706753442921,-500.0,0.00032876,2]
[313106904,1706753442930,-533.60165876,0.00032876,2]
[313106905,1706753442939,-1283.42,0.00032876,2]
[313106906,1706753442948,-500.0,0.00032876,2]
[313106907,1706753442958,-590.82324621,0.00032876,2]
[313106908,1706753442967,-500.0,0.00032876,2]
[313106909,1706753442977,-500.0,0.00032876,2]
[313106910,1706753442986,-18391.59,0.00032876,2]
[313106911,1706753442995,-1359.64,0.00032876,2]
[313106912,1706753443004,-723.9,0.00032876,2]
[313106913,1706753443014,-500.0,0.00032876,2]
[313106914,1706753443024,-500.0,0.00032876,2]
[313106915,1706753443033,-631.81,0.00032876,2]
[313106916,1706753443042,-190.40488526,0.00032876,2]
[313106917,1706753443051,-500.0,0.00032876,2]
[313106918,1706753443060,-500.0,0.00032876,2]
[313106919,1706753443234,-500.0,0.00032876,2]
[313106920,1706753443245,-500.0,0.00032876,2]
[313106921,1706753443255,-500.0,0.00032876,2]
[313106922,1706753443265,-881.3,0.00032876,2]
[313106923,1706753443274,-509.25392895,0.00032876,2]
[313106924,1706753443283,-1212.78,0.00032876,2]
[313106925,1706753443292,-812.76,0.00032876,2]
[313106926,1706753443302,-500.0,0.00032876,2]
[313106927,1706753443311,-500.0,0.00032876,2]
[313106928,1706753443320,-857.23,0.00032876,2]
[313106929,1706753443331,-500.0,0.00032876,2]
[313106930,1706753443341,-500.0,0.00032876,2]
[313106931,1706753443350,-705.5,0.00032876,2]
[313106932,1706753443359,-1366.96,0.00032876,2]
[313106933,1706753443369,-565.2,0.00032876,2]
[313106934,1706753443382,-573.41,0.00032876,2]
[313106935,1706753443391,-500.0,0.00032876,2]
[313106936,1706753443401,-647.7518249,0.00032876,2]
[313106937,1706753443411,-500.0,0.00032876,2]
[313106938,1706753443424,-500.0,0.00032876,2]
[313106939,1706753443434,-588.44,0.00032876,2]
[313106940,1706753443444,-2427.53,0.00032876,2]
[313106941,1706753443453,-500.0,0.00032876,2]
[313106942,1706753443463,-500.0,0.00032876,2]
[313106943,1706753443473,-1019.17,0.00032876,2]
[313106944,1706753443483,-500.0,0.00032876,2]
[313106945,1706753443492,-588.18,0.00032876,2]
[313106946,1706753443502,-578.65,0.00032876,2]
[313106947,1706753443511,-500.0,0.00032876,2]
[313106948,1706753443521,-2981.67,0.00032876,2]
[313106949,1706753443530,-825.08,0.00032876,2]
[313106950,1706753443540,-500.0,0.00032876,2]
[313106951,1706753443549,-500.0,0.00032876,2]
[313106952,1706753443559,-1063.77,0.00032876,2]
[313106953,1706753443568,-4863.03,0.00032876,2]
[313106954,1706753443578,-500.0,0.00032876,2]
[313106955,1706753443587,-1608.22,0.00032876,2]
[313106956,1706753443596,-839.58,0.00032876,2]
[313106957,1706753443605,-500.0,0.00032876,2]
[313106958,1706753443615,-500.0,0.00032876,2]
[313106959,1706753443625,-500.0,0.00032876,2]
[313106960,1706753443635,-500.0,0.00032876,2]
[313106961,1706753443644,-500.0,0.00032876,2]
[313106962,1706753443653,-500.0,0.00032876,2]
[313106963,1706753443662,-500.0,0.00032876,2]
[313106964,1706753443672,-500.0,0.00032876,2]
[313106965,1706753443682,-573.21343277,0.00032876,2]
[313106966,1706753443691,-653.9,0.00032876,2]
[313106967,1706753443701,-606.44947571,0.00032876,2]
[313106968,1706753443710,-500.0,0.00032876,2]
[313106969,1706753443720,-500.0,0.00032876,2]
[313106970,1706753443729,-500.0,0.00032876,2]
[313106971,1706753443739,-600.76,0.00032876,2]
[313106972,1706753443748,-1190.11,0.00032876,2]
[313106973,1706753443758,-2893.73,0.00032876,2]
[313106974,1706753443767,-521.78,0.00032876,2]
[313106975,1706753443777,-604.33,0.00032876,2]
[313106976,1706753443788,-500.0,0.00032876,2]
[313106977,1706753443798,-500.0,0.00032876,2]
[313106978,1706753443807,-1202.11,0.00032876,2]
[313106979,1706753443817,-500.0,0.00032876,2]
[313106980,1706753443826,-500.0,0.00032876,2]
[313106981,1706753443835,-500.0,0.00032876,2]
[313106982,1706753443845,-700.42,0.00032876,2]
[313106983,1706753443854,-588.35,0.00032876,2]
[313106984,1706753443864,-500.0,0.00032876,2]
[313106985,1706753443875,-500.0,0.00032876,2]
[313106986,1706753443884,-500.0,0.00032876,2]
[313106987,1706753443893,-1342.61,0.00032876,2]
[313106988,1706753443903,-500.0,0.00032876,2]
[313106989,1706753443912,-1000.0,0.00032876,7]
[313106990,1706753443922,-512.04,0.00032876,2]
[313106991,1706753443932,-500.0,0.00032876,2]
[313106992,1706753443941,-500.0,0.00032876,2]
[313106993,1706753443951,-1000.0,0.00032876,7]
[313106994,1706753443961,-2435.43,0.00032876,2]
[313106995,1706753443971,-663.09,0.00032876,2]
[313106996,1706753443981,-500.0,0.00032876,2]
[313106997,1706753443990,-524.89,0.00032876,2]
[313106998,1706753444000,-1175.05,0.00032876,2]
[313106999,1706753444009,-1116.38,0.00032876,2]
[313107000,1706753444018,-608.17,0.00032876,2]
[313107001,1706753444027,-500.0,0.00032876,2]
[313107002,1706753444036,-500.0,0.00032876,2]
[313107003,1706753444046,-1738.12,0.00032876,2]
[313107004,1706753444055,-705.29,0.00032876,2]
[313107005,1706753444065,-500.0,0.00032876,2]
[313107006,1706753444074,-500.0,0.00032876,2]
[313107007,1706753444083,-667.37,0.00032876,2]
[313107008,1706753444093,-729.75,0.00032876,2]
[313107009,1706753444102,-602.39,0.00032876,2]
[313107010,1706753444111,-500.0,0.00032876,2]
[313107011,1706753444121,-1497.78,0.00032876,2]
[313107012,1706753444132,-858.58,0.00032876,2]
[313107013,1706753444142,-500.0,0.00032876,2]
[313107014,1706753444151,-500.0,0.00032876,2]
[313107015,1706753444160,-500.0,0.00032876,2]
[313107016,1706753444170,-543.58,0.00032876,2]
[313107017,1706753444179,-500.0,0.00032876,2]
[313107018,1706753444189,-708.31,0.00032876,2]
[313107019,1706753444198,-500.0,0.00032876,2]
[313107020,1706753444207,-716.23,0.00032876,2]
[313107021,1706753444216,-1482.14,0.00032876,2]
[313107022,1706753444226,-187.18642964,0.00032876,2]
[313107023,1706753444236,-1514.5,0.00032876,2]
[313107024,1706753444245,-500.0,0.00032876,2]
[313107025,1706753444254,-500.0,0.00032876,2]
[313107026,1706753444263,-500.0,0.00032876,2]
[313107027,1706753444273,-500.0,0.00032876,2]
[313107028,1706753444282,-500.0,0.00032876,2]
[313107029,1706753444292,-500.0,0.00032876,2]